lending/lending_fUSD_20250121
["ID","MTS","AMOUNT","RATE_DAILY","PERIOD"]
[349900349,1737485444857,-644.6,0.00021095,2]
[349900350,1737485444867,-649.88,0.00021095,2]
[349900351,1737485444876,-500.0,0.00021095,2]
[349900352,1737485444887,-1092.41,0.00021095,2]
[349900353,1737485444896,-506.52,0.00021095,2]
[349900354,1737485444906,-677.62,0.00021095,2]
[349900355,1737485444916,-771.01,0.00021095,2]
[349900356,1737485444925,-500.0,0.00021095,2]
[349900357,1737485444937,-1353.51,0.00021095,2]
[349900358,1737485444947,-542.59,0.00021095,2]
[349900359,1737485444956,-675.97,0.00021095,2]
[349900360,1737485444967,-500.0,0.00021095,2]
[349900361,1737485444976,-793.35,0.00021095,2]
[349900362,1737485444986,-1076.5,0.00021095,2]
[349900363,1737485444996,-1185.13,0.00021095,2]
[349900364,1737485445006,-1387.56,0.00021095,2]
[349900365,1737485445016,-1753.6,0.00021095,2]
[349900366,1737485445026,-500.0,0.00021095,2]
[349900367,1737485445037,-500.0,0.00021095,2]
[349900368,1737485445047,-573.15,0.00021095,2]
[349900369,1737485445056,-500.0,0.00021095,2]
[349900370,1737485445066,-1510.81,0.00021095,2]
[349900371,1737485445075,-500.0,0.00021095,2]
[349900372,1737485445084,-907.0,0.00021095,2]
[349900373,1737485445093,-720.81,0.00021095,2]
[349900374,1737485445103,-718.03,0.00021095,2]
[349900375,1737485445112,-903.74,0.00021095,2]
[349900376,1737485445121,-500.0,0.00021095,2]
[349900377,1737485445130,-500.0,0.00021095,2]
[349900378,1737485445139,-2563.79,0.00021095,2]
[349900379,1737485445148,-500.0,0.00021095,2]
[349900380,1737485445157,-500.0,0.00021095,2]
[349900381,1737485445167,-246.48497191,0.00021095,2]
[349900382,1737485445177,-150.0,0.00021095,2]
[349900383,1737485445187,-833.65,0.00021095,2]
[349900384,1737485445196,-539.27,0.00021095,2]
[349900385,1737485445206,-720.8,0.00021095,2]
[349900386,1737485445215,-2122.12,0.00021095,2]
[349900387,1737485445224,-500.0,0.00021095,2]
[349900388,1737485445234,-996.56,0.00021095,2]
[349900389,1737485445243,-500.0,0.00021095,2]
[349900390,1737485445252,-500.0,0.00021095,2]
[349900391,1737485445262,-500.0,0.00021095,2]
[349900392,1737485445272,-658.35,0.00021095,2]
[349900393,1737485445281,-634.28,0.00021095,2]
[349900394,1737485445291,-628.52,0.00021095,2]
[349900395,1737485445300,-850.4,0.00021095,2]
[349900396,1737485445310,-150.0,0.00021114,2]
[349900397,1737485445320,-322.65909564,0.00021116,2]
[349900398,1737485445330,-500.0,0.00021122,2]
[349900399,1737485445339,-150.0,0.00021127,2]
[349900400,1737485445349,-572.2844262,0.0002115,2]
[349900401,1737485445359,-1317.0,0.00021151,2]
[349900402,1737485445373,-73153.6142682,0.0002116,2]
[349900403,1737485445384,-150.0,0.00021162,2]
[349900404,1737485445393,-15451.1932337,0.00021164,2]
[349900405,1737485445403,-501.0,0.0002117,2]
[349900406,1737485445411,-104075.03441163,0.0002117,2]
[349900407,1737485445593,-310.24010705,0.0002117,2]
[349900410,1737485445815,-6905.45253584,0.0002,3]
[349900411,1737485445827,-1706.75000003,0.0002,3]
[349900412,1737485445854,-4276.1352,0.0002,3]
[349900414,1737485445868,-644.82818535,0.0002,3]
[349900417,1737485445881,-26466.83407878,0.0002,3]
[349900418,1737485445890,-500.0,0.00020272,2]
[349900420,1737485445901,-500.0,0.00020546,2]
[349900422,1737485445911,-500.0,0.00020546,2]
[349900424,1737485445922,-500.0,0.0002082,2]
[349900426,1737485445931,-500.0,0.0002082,2]
[349900428,1737485445941,-500.0,0.00021094,2]
[349900430,1737485445951,-85736.52710855,0.0002117,2]
[349900431,1737485445961,-151.0,0.0002117,2]
[349900432,1737485445971,-151.0,0.0002117,2]
[349900433,1737485445980,-200.0,0.0002117,2]
[349900434,1737485445990,-1286.5647765,0.0002117,2]
[349900435,1737485445999,-200.0,0.0002117,2]
[349900436,1737485446009,-500.0,0.00021173,2]
[349900437,1737485446018,-500.0,0.00021173,2]
[349900438,1737485446028,-500.0,0.00021173,2]
[349900439,1737485446038,-352.56669376,0.00021174,2]
[349900440,1737485446048,-150.0,0.00021178,2]
[349900441,1737485446058,-1269.0,0.00021179,2]
[349900442,1737485446067,-2018.0,0.00021179,2]
[349900443,1737485446077,-219.286,0.00021179,2]
[349900444,1737485446087,-636.0,0.00021179,2]
[349900445,1737485446096,-581.396,0.00021179,2]
[349900446,1737485446106,-1864.0,0.00021179,2]
[349900447,1737485446117,-1261.0,0.00021179,2]
[349900448,1737485446127,-3007.741,0.00021179,2]
[349900449,1737485446136,-781.0,0.00021179,2]
[349900450,1737485446147,-907.0,0.00021179,2]
[349900451,1737485446156,-538.143,0.00021179,2]
[349900452,1737485446165,-3984.0,0.00021179,2]
[349900453,1737485446175,-232.795,0.00021179,2]
[349900454,1737485446184,-1178.644,0.00021179,2]
[349900455,1737485446194,-3902.0,0.00021179,2]
[349900456,1737485446204,-150.0,0.00021179,2]
[349900457,1737485446213,-150.0,0.00021179,2]
[349900458,1737485446223,-1106.0,0.00021179,2]
[349900459,1737485446232,-150.0,0.00021179,2]
[349900460,1737485446242,-150.0,0.00021179,2]
[349900461,1737485446251,-501.28,0.00021179,2]
[349900462,1737485446261,-500.99,0.00021179,2]
[349900463,1737485446271,-596.84,0.00021179,2]
[349900464,1737485446328,-999.0,0.00021179,2]
[349900465,1737485446337,-202.5731178,0.0002118,2]
[349900466,1737485446347,-109788.19068565,0.0002118,2]
[349900468,1737485446522,-838.670005,0.0002118,2]
[349900471,1737485446533,-1022.11,0.0002118,2]
[349900474,1737485446556,-510.01,0.00021094,2]
[349900476,1737485446566,-4549.3655369,0.0002118,2]
[349900478,1737485446576,-342.93998575,0.0002118,2]
[349900480,1737485446587,-503.46820895,0.0002118,2]
[349900481,1737485446623,-575.13609019,0.0002107,2]
[349900482,1737485446632,-13643.55756461,0.0002118,2]
[349900483,1737485446647,-4505.39551871,0.0002118,2]
[349900484,1737485446659,-384.04007655,0.0002118,2]
[349900485,1737485446670,-924.10102552,0.0002118,2]
[349900486,1737485446681,-262.515,0.0002118,2]
[349900487,1737485446735,-2288.91045091,0.0002118,2]
[349900488,1737485446746,-721.24525557,0.0002118,2]
[349900489,1737485446757,-463.95250134,0.0002118,2]
[349900490,1737485446768,-1862.54424,0.0002118,2]
[349900491,1737485446779,-625.389765,0.0002118,2]
[349900492,1737485446791,-731.96425197,0.0002118,2]
[349900493,1737485447529,-80104.91710501,0.0002118,2]
[349900494,1737485447542,-7901.67657273,0.0002118,2]
[349900495,1737485447850,-500.0,0.00019999,2]
[349900496,1737485447859,-236.29,0.00020272,2]
[349900497,1737485447869,-500.0,0.00020273,2]
[349900498,1737485447879,-25460.81231366,0.0002118,2]
[349900499,1737485447891,-5354.5,0.0002118,2]
[349900500,1737485447903,-4104.21471013,0.0002118,2]
[349900501,1737485447917,-21161.59763821,0.0002118,2]
[349900502,1737485447934,-335.45,0.00020547,2]
[349900503,1737485447945,-164.55,0.00020547,2]
[349900504,1737485447955,-13756.61929868,0.0002118,2]
[349900505,1737485448128,-44488.65599446,0.0002118,2]
[349900506,1737485448140,-664.717,0.0002118,2]
[349900507,1737485448191,-9401.77028378,0.0002118,2]
[349900508,1737485448213,-383.20020393,0.0002118,2]
[349900509,1737485448362,-500.0,0.00020821,2]
[349900510,1737485448374,-47.9,0.00021075,2]
[349900511,1737485448387,-527.23609018,0.00021075,2]
[349900512,1737485448397,-123.87692559,0.00021095,2]
[349900513,1737485448409,-376.12307441,0.00021095,2]
[349900514,1737485448419,-1226.53882559,0.0002118,2]
[349900515,1737485448431,-3164.70189301,0.0002118,2]
[349900516,1737485448443,-1491.77248256,0.0002118,2]
[349900517,1737485448455,-15083.9634904,0.0002118,2]
[349900518,1737485448467,-695.59095049,0.0002118,2]
[349900519,1737485448479,-1836.16161798,0.0002118,2]
[349900520,1737485448496,-180.607748,0.00019998,2]
[349900521,1737485448507,-63294.85744058,0.0002118,2]
[349900522,1737485448518,-28508.49404943,0.0002118,2]
[349900523,1737485448541,-1073100.020485,0.0002118,2]
[349900524,1737485448553,-672882.72184,0.0002118,2]
[349900525,1737485448567,-16070.6346154,0.0002118,2]
[349900526,1737485448579,-368.18,0.0002118,2]
[349900527,1737485448592,-697.24,0.0002118,2]
[349900528,1737485448605,-985.88358137,0.0002118,2]
[349900529,1737485448618,-716.74426138,0.0002118,2]
[349900530,1737485448630,-1098.0,0.0002118,2]
[349900531,1737485448647,-500.0,0.00019999,2]
[349900532,1737485448657,-4467.98973585,0.0002118,2]
[349900533,1737485448669,-1857.8163465,0.0002118,2]
[349900534,1737485450584,-248588.90608536,0.0002118,2]
[349900535,1737485450597,-485.28408669,0.0002118,2]
[349900536,1737485450609,-12562.17492713,0.0002118,2]
[349900538,1737485600354,158.04,0.00010137,2]
[349900544,1737486445015,200.32154804,0.00012548,2]
[349900545,1737486506893,155.34,0.00010137,2]
[349900547,1737486559160,200.0,0.00012111,2]
[349900551,1737486632200,-550.0,0.00015,2]
[349900552,1737486632215,-3280.0,0.000154,5]
[349900553,1737486632227,-2265.7971242,0.000169,2]
[349900554,1737486632239,-600.0,0.00017,2]
[349900555,1737486632251,-514.65487579,0.00017397,2]
[349900556,1737486632307,-30.86512421,0.00017397,2]
[349900557,1737486632318,-155.34,0.00018594,2]
[349900558,1737486632334,-200.6,0.00018854,2]
[349900559,1737486632344,-650.0,0.00019,2]
[349900560,1737486632355,-155.44,0.0001906,30]
[349900561,1737486632365,-150.0,0.00019071,2]
[349900562,1737486632376,-300.0,0.00019181,2]
[349900563,1737486632386,-1666.33652728,0.00019182,2]
[349900564,1737486632467,-22233.66347272,0.00019182,2]
[349900565,1737486632477,-250.0,0.00019214,2]
[349900566,1737486632488,-1000.0,0.00019256,2]
[349900567,1737486632498,-200.0,0.00019359,2]
[349900568,1737486632508,-184.74,0.00019431,2]
[349900569,1737486632518,-250.0,0.00019652,2]
[349900570,1737486632528,-545.52,0.00019661,2]
[349900571,1737486632538,-458.21,0.00019715,2]
[349900572,1737486632547,-250.0,0.0001973,2]
[349900573,1737486632557,-606.66,0.00019757,2]
[349900574,1737486632567,-161.32,0.00019826,2]
[349900575,1737486632577,-1069.629,0.00019998,2]
[349900576,1737486632587,-176.40963862,0.00019998,2]
[349900577,1737486632597,-405.0,0.00019998,2]
[349900578,1737486632606,-99324.29582142,0.00019999,2]
[349900579,1737486632617,-523.30466345,0.00019999,2]
[349900580,1737486632626,-504.15479132,0.00019999,2]
[349900581,1737486632635,-500.0,0.00019999,2]
[349900582,1737486632646,-300.70533633,0.00019999,2]
[349900583,1737486632657,-500.0,0.00019999,2]
[349900584,1737486632668,-500.0,0.00019999,2]
[349900585,1737486632678,-500.0,0.00019999,2]
[349900586,1737486632688,-500.0,0.00019999,2]
[349900587,1737486632698,-500.0,0.00019999,2]
[349900588,1737486632708,-500.0,0.00019999,2]
[349900589,1737486632717,-500.0,0.00019999,2]
[349900590,1737486632728,-456.6014641,0.00019999,2]
[349900591,1737486632738,-500.0,0.00019999,2]
[349900592,1737486632747,-500.0,0.00019999,2]
[349900593,1737486632758,-500.0,0.00019999,2]
[349900594,1737486632767,-500.0,0.00019999,2]
[349900595,1737486632777,-500.0,0.00019999,2]
[349900597,1737486632787,-472.23897332,0.00019999,2]
[349900599,1737486632796,-500.0,0.00019999,2]
[349900600,1737486632805,-500.0,0.00019999,2]
[349900603,1737486632815,-500.0,0.00019999,2]
[349900604,1737486632825,-500.0,0.00019999,2]
[349900606,1737486632834,-500.0,0.00019999,2]
[349900609,1737486632843,-500.0,0.00019999,2]
[349900613,1737486632853,-500.0,0.00019999,2]
[349900617,1737486632862,-500.0,0.00019999,2]
[349900620,1737486632872,-500.0,0.00019999,2]
[349900623,1737486632882,-500.0,0.00019999,2]
[349900626,1737486632891,-514.65413371,0.00019999,2]
[349900629,1737486632902,-500.0,0.00019999,2]
[349900632,1737486632912,-500.0,0.00019999,2]
[349900635,1737486632921,-500.0,0.00019999,2]
[349900637,1737486632931,-500.0,0.00019999,2]
[349900639,1737486632941,-500.0,0.00019999,2]
[349900641,1737486632951,-500.0,0.00019999,2]
[349900643,1737486632961,-500.0,0.00019999,2]
[349900645,1737486632969,-501.30210571,0.00019999,2]
[349900647,1737486632978,-500.0,0.00019999,2]
[349900649,1737486632987,-500.0,0.00019999,2]
[349900651,1737486632996,-500.0,0.00019999,2]
[349900652,1737486633006,-500.0,0.00019999,2]
[349900655,1737486633017,-500.0,0.00019999,2]
[349900657,1737486633026,-305.10786875,0.00019999,2]
[349900659,1737486633036,-500.0,0.00019999,2]
[349900660,1737486633046,-500.0,0.00019999,2]
[349900662,1737486633056,-500.0,0.00019999,2]
[349900664,1737486633066,-500.0,0.00019999,2]
[349900666,1737486633076,-500.0,0.00019999,2]
[349900668,1737486633086,-500.0,0.00019999,2]
[349900671,1737486633292,-500.56104511,0.00019999,2]
[349900672,1737486633303,-500.0,0.00019999,2]
[349900673,1737486633313,-500.0,0.00019999,2]
[349900674,1737486633323,-500.0,0.00019999,2]
[349900675,1737486633332,-500.0,0.00019999,2]
[349900676,1737486633342,-504.08802307,0.00019999,2]
[349900677,1737486633352,-505.00676416,0.00019999,2]
[349900678,1737486633361,-500.0,0.00019999,2]
[349900679,1737486633371,-500.0,0.00019999,2]
[349900680,1737486633381,-500.0,0.00019999,2]
[349900681,1737486633391,-500.0,0.00019999,2]
[349900682,1737486633402,-500.0,0.00019999,2]
[349900683,1737486633411,-500.0,0.00019999,2]
[349900684,1737486633420,-150.9834171,0.00019999,2]
[349900685,1737486633429,-500.0,0.00019999,2]
[349900686,1737486633439,-500.0,0.00019999,2]
[349900687,1737486633449,-500.0,0.00019999,2]
[349900688,1737486633459,-567.32949554,0.00019999,2]
[349900689,1737486633468,-500.0,0.00019999,2]
[349900690,1737486633478,-500.0,0.00019999,2]
[349900691,1737486633487,-500.0,0.00019999,2]
[349900692,1737486633497,-500.0,0.00019999,2]
[349900693,1737486633507,-500.0,0.00019999,2]
[349900694,1737486633516,-500.0,0.00019999,2]
[349900695,1737486633526,-500.0,0.00019999,2]
[349900696,1737486633536,-500.0,0.00019999,2]
[349900697,1737486633547,-500.0,0.00019999,2]
[349900698,1737486633557,-500.0,0.00019999,2]
[349900699,1737486633567,-500.0,0.00019999,2]
[349900700,1737486633577,-500.0,0.00019999,2]
[349900701,1737486633587,-500.0,0.00019999,2]
[349900702,1737486633596,-500.0,0.00019999,2]
[349900703,1737486633606,-500.0,0.00019999,2]
[349900704,1737486633616,-500.0,0.00019999,2]
[349900705,1737486633626,-500.0,0.00019999,2]
[349900706,1737486633636,-500.0,0.00019999,2]
[349900707,1737486633646,-500.0,0.00019999,2]
[349900708,1737486633657,-500.0,0.00019999,2]
[349900709,1737486633666,-587.1611623,0.00019999,2]
[349900710,1737486633675,-500.0,0.00019999,2]
[349900711,1737486633686,-500.0,0.00019999,2]
[349900712,1737486633696,-500.0,0.00019999,2]
[349900713,1737486633706,-500.0,0.00019999,2]
[349900714,1737486633716,-500.0,0.00019999,2]
[349900715,1737486633726,-500.0,0.00019999,2]
[349900716,1737486633736,-500.0,0.00019999,2]
[349900717,1737486633746,-500.0,0.00019999,2]
[349900718,1737486633757,-500.0,0.00019999,2]
[349900719,1737486633767,-249.037796,0.00019999,2]
[349900720,1737486633778,-500.0,0.00019999,2]
[349900721,1737486633788,-500.0,0.00019999,2]
[349900722,1737486633799,-500.0,0.00019999,2]
[349900723,1737486633809,-500.0,0.00019999,2]
[349900724,1737486633819,-500.0,0.00019999,2]
[349900725,1737486633829,-500.0,0.00019999,2]
[349900726,1737486633839,-500.0,0.00019999,2]
[349900727,1737486633849,-500.0,0.00019999,2]
[349900728,1737486633859,-500.0,0.00019999,2]
[349900729,1737486633869,-500.0,0.00019999,2]
[349900730,1737486633878,-500.0,0.00019999,2]
[349900731,1737486633888,-500.0,0.00019999,2]
[349900732,1737486633900,-500.0,0.00019999,2]
[349900733,1737486633910,-500.0,0.00019999,2]
[349900734,1737486633920,-500.0,0.00019999,2]
[349900735,1737486633930,-500.0,0.00019999,2]
[349900736,1737486633941,-559.41641496,0.00019999,2]
[349900737,1737486633951,-500.0,0.00019999,2]
[349900738,1737486633961,-500.0,0.00019999,2]
[349900739,1737486633971,-300.0,0.00019999,2]
[349900740,1737486633981,-500.0,0.00019999,2]
[349900741,1737486633990,-500.0,0.00019999,2]
[349900742,1737486634001,-500.0,0.00019999,2]
[349900743,1737486634012,-500.0,0.00019999,2]
[349900744,1737486634023,-500.0,0.00019999,2]
[349900745,1737486634033,-500.0,0.00019999,2]
[349900746,1737486634043,-500.0,0.00019999,2]
[349900747,1737486634054,-500.0,0.00019999,2]
[349900748,1737486634064,-500.0,0.00019999,2]
[349900749,1737486634074,-500.0,0.00019999,2]
[349900750,1737486634083,-500.0,0.00019999,2]
[349900751,1737486634094,-500.0,0.00019999,2]
[349900752,1737486634104,-500.0,0.00019999,2]
[349900753,1737486634114,-500.0,0.00019999,2]
[349900754,1737486634124,-383.44849007,0.00019999,2]
[349900755,1737486634134,-500.0,0.00019999,2]
[349900756,1737486634158,-517.29758797,0.00019999,2]
[349900757,1737486634171,-176.80574731,0.00019999,2]
[349900758,1737486634181,-500.0,0.00019999,2]
[349900759,1737486634192,-500.0,0.00019999,2]
[349900760,1737486634203,-500.0,0.00019999,2]
[349900761,1737486634215,-500.0,0.00019999,2]
[349900762,1737486634226,-500.0,0.00019999,2]
[349900763,1737486634236,-500.0,0.00019999,2]
[349900764,1737486634246,-2446.0,0.0002,2]
[349900765,1737486634258,-418.3,0.0002,2]
[349900766,1737486634268,-372.38042432,0.00020172,2]
[349900767,1737486634279,-1089.0806,0.00020173,2]
[349900768,1737486634291,-5000.0,0.00020173,2]
[349900769,1737486634300,-294.07,0.00020262,2]
[349900770,1737486634311,-294.07,0.00020262,2]
[349900771,1737486634321,-547.29,0.00020268,2]
[349900772,1737486634331,-500.0,0.00020268,2]
[349900773,1737486634342,-500.0,0.00020268,2]
[349900774,1737486634353,-500.0,0.00020268,2]
[349900775,1737486634362,-500.0,0.00020268,2]
[349900776,1737486634372,-500.0,0.00020268,2]
[349900777,1737486634382,-500.0,0.00020268,2]
[349900778,1737486634392,-500.0,0.00020268,2]
[349900779,1737486634403,-500.0,0.00020272,2]
[349900780,1737486634413,-152.63303509,0.00020272,2]
[349900781,1737486634423,-500.0,0.00020272,2]
[349900782,1737486634433,-500.0,0.00020272,2]
[349900783,1737486634444,-500.0,0.00020272,2]
[349900784,1737486634454,-500.0,0.00020272,2]
[349900785,1737486634464,-500.0,0.00020272,2]
[349900786,1737486634473,-500.0,0.00020272,2]
[349900787,1737486634483,-500.0,0.00020272,2]
[349900788,1737486634493,-289.53006669,0.00020272,2]
[349900789,1737486634503,-500.0,0.00020272,2]
[349900790,1737486634513,-500.0,0.00020272,2]
[349900791,1737486634523,-500.0,0.00020272,2]
[349900792,1737486634532,-500.0,0.00020272,2]
[349900793,1737486634542,-500.0,0.00020272,2]
[349900794,1737486634552,-500.0,0.00020272,2]
[349900795,1737486634562,-500.0,0.00020272,2]
[349900796,1737486634571,-331.56,0.00020272,2]
[349900797,1737486634580,-500.0,0.00020272,2]
[349900798,1737486634590,-500.0,0.00020272,2]
[349900799,1737486634599,-500.0,0.00020272,2]
[349900800,1737486634609,-500.0,0.00020272,2]
[349900801,1737486634619,-500.0,0.00020272,2]
[349900802,1737486634629,-500.0,0.00020272,2]
[349900803,1737486634639,-500.0,0.00020272,2]
[349900804,1737486634649,-500.0,0.00020272,2]
[349900805,1737486634659,-500.0,0.00020272,2]
[349900806,1737486634668,-500.0,0.00020272,2]
[349900807,1737486634677,-500.0,0.00020272,2]
[349900808,1737486634686,-500.0,0.00020272,2]
[349900809,1737486634695,-500.0,0.00020272,2]
[349900810,1737486634704,-500.0,0.00020272,2]
[349900811,1737486634713,-500.0,0.00020272,2]
[349900812,1737486634723,-500.0,0.00020272,2]
[349900813,1737486634732,-500.0,0.00020272,2]
[349900814,1737486634742,-500.0,0.00020272,2]
[349900815,1737486634752,-500.0,0.00020272,2]
[349900816,1737486634762,-500.0,0.00020272,2]
[349900817,1737486634771,-500.0,0.00020272,2]
[349900818,1737486634781,-500.0,0.00020272,2]
[349900819,1737486634790,-500.0,0.00020272,2]
[349900820,1737486634800,-500.0,0.00020272,2]
[349900821,1737486634809,-500.0,0.00020272,2]
[349900822,1737486634819,-500.0,0.00020272,2]
[349900823,1737486634829,-156.3745293,0.00020272,2]
[349900824,1737486634838,-500.0,0.00020272,2]
[349900825,1737486634848,-500.0,0.00020272,2]
[349900826,1737486634857,-500.0,0.00020272,2]
[349900827,1737486634867,-500.0,0.00020272,2]
[349900828,1737486634876,-500.0,0.00020272,2]
[349900829,1737486634885,-500.0,0.00020272,2]
[349900830,1737486634895,-500.0,0.00020272,2]
[349900831,1737486634906,-500.0,0.00020272,2]
[349900832,1737486634918,-500.0,0.00020272,2]
[349900833,1737486634928,-500.0,0.00020272,2]
[349900834,1737486634938,-500.0,0.00020272,2]
[349900835,1737486634947,-500.0,0.00020272,2]
[349900836,1737486634957,-500.0,0.00020272,2]
[349900837,1737486634966,-500.0,0.00020272,2]
[349900838,1737486634975,-500.0,0.00020272,2]
[349900839,1737486634986,-500.0,0.00020272,2]
[349900840,1737486634995,-290.42,0.00020272,2]
[349900841,1737486635005,-500.0,0.00020272,2]
[349900842,1737486635015,-362.97459471,0.00020272,2]
[349900843,1737486635025,-500.0,0.00020272,2]
[349900844,1737486635035,-500.0,0.00020272,2]
[349900845,1737486635044,-500.0,0.00020272,2]
[349900846,1737486635054,-500.0,0.00020272,2]
[349900847,1737486635063,-395.90729661,0.00020272,2]
[349900848,1737486635074,-500.0,0.00020272,2]
[349900849,1737486635083,-500.0,0.00020272,2]
[349900850,1737486635093,-500.0,0.00020272,2]
[349900851,1737486635104,-491.8000024,0.00020272,2]
[349900852,1737486635114,-500.0,0.00020272,2]
[349900853,1737486635124,-500.0,0.00020272,2]
[349900854,1737486635133,-518.84058756,0.00020272,2]
[349900855,1737486635143,-500.0,0.00020272,2]
[349900856,1737486635154,-500.0,0.00020272,2]
[349900857,1737486635164,-500.0,0.00020272,2]
[349900858,1737486635173,-500.0,0.00020272,2]
[349900859,1737486635183,-500.0,0.00020272,2]
[349900860,1737486635192,-500.0,0.00020272,2]
[349900861,1737486635204,-500.0,0.00020272,2]
[349900862,1737486635216,-500.0,0.00020272,2]
[349900863,1737486635226,-500.0,0.00020272,2]
[349900864,1737486635235,-500.0,0.00020272,2]
[349900865,1737486635246,-500.0,0.00020272,2]
[349900866,1737486635256,-500.0,0.00020272,2]
[349900867,1737486635266,-500.0,0.00020272,2]
[349900868,1737486635275,-500.0,0.00020272,2]
[349900869,1737486635285,-500.0,0.00020272,2]
[349900870,1737486635295,-500.0,0.00020272,2]
[349900871,1737486635304,-500.0,0.00020272,2]
[349900872,1737486635313,-535.12,0.00020272,2]
[349900873,1737486635323,-918.3,0.00020272,2]
[349900874,1737486635332,-500.0,0.00020272,2]
[349900875,1737486635342,-500.0,0.00020272,2]
[349900876,1737486635351,-469.616081,0.00020272,2]
[349900877,1737486635361,-500.0,0.00020272,2]
[349900878,1737486635370,-500.0,0.00020272,2]
[349900879,1737486635379,-500.0,0.00020272,2]
[349900880,1737486635389,-500.0,0.00020272,2]
[349900881,1737486635399,-500.0,0.00020272,2]
[349900882,1737486635410,-272.221291,0.00020272,2]
[349900883,1737486635420,-620.79828153,0.00020272,2]
[349900884,1737486635430,-279.72909541,0.00020272,2]
[349900885,1737486635440,-161.826172,0.00020272,2]
[349900886,1737486635450,-587.71,0.00020272,2]
[349900887,1737486635460,-531.14,0.00020272,2]
[349900888,1737486635470,-500.0,0.00020272,2]
[349900889,1737486635479,-500.0,0.00020272,2]
[349900890,1737486635489,-578.97,0.00020272,2]
[349900891,1737486635499,-500.0,0.00020272,2]
[349900892,1737486635508,-500.0,0.00020272,2]
[349900893,1737486635518,-1134.03,0.00020272,2]
[349900894,1737486635527,-500.0,0.00020272,2]
[349900895,1737486635537,-500.0,0.00020272,2]
[349900896,1737486635547,-731.71,0.00020272,2]
[349900897,1737486635556,-500.0,0.00020272,2]
[349900898,1737486635566,-500.0,0.00020272,2]
[349900899,1737486635576,-500.0,0.00020272,2]
[349900900,1737486635585,-1140.15,0.00020272,2]
[349900901,1737486635596,-500.0,0.00020272,2]
[349900902,1737486635605,-500.0,0.00020272,2]
[349900903,1737486635616,-500.0,0.00020272,2]
[349900904,1737486635626,-589.4114648,0.00020272,2]
[349900905,1737486635635,-500.0,0.00020272,2]
[349900906,1737486635644,-612.31,0.00020272,2]
[349900907,1737486635654,-500.0,0.00020272,2]
[349900908,1737486635663,-500.0,0.00020272,2]
[349900909,1737486635673,-560.60911462,0.00020272,2]
[349900910,1737486635683,-500.0,0.00020272,2]
[349900911,1737486635693,-1201.96,0.00020272,2]
[349900912,1737486635703,-762.31,0.00020272,2]
[349900913,1737486635713,-500.0,0.00020272,2]
[349900914,1737486635723,-500.0,0.00020272,2]
[349900915,1737486635732,-500.0,0.00020272,2]
[349900916,1737486635743,-532.67,0.00020272,2]
[349900917,1737486635752,-500.0,0.00020272,2]
[349900918,1737486635762,-500.0,0.00020272,2]
[349900919,1737486635772,-1012.54,0.00020272,2]
[349900920,1737486635781,-756.34,0.00020272,2]